[Event "Early-Titled-Tuesday-Blitz-November-28-2023"]
[Site "Chess.com"]
[Date "2023.11.28"]
[Round "1"]
[White "vishwa_vijeta"]
[Black "TRadjabov"]
[Result "0-1"]
[WhiteElo "2516"]
[BlackElo "3017"]
[TimeControl "180+1"]
[EndTime "8:09:02 PST"]
[Termination "TRadjabov won on time"]

1. e4 {[%clk 0:02:59.3]} 1... b6 {[%clk 0:02:48.2]} 2. d4 {[%clk 0:02:57.4]}
2... Bb7 {[%clk 0:02:49.1]} 3. Nc3 {[%clk 0:02:48.7]} 3... e6 {[%clk 0:02:49.2]}
4. Nf3 {[%clk 0:02:48.3]} 4... Bb4 {[%clk 0:02:48.2]} 5. Bd3 {[%clk 0:02:44.9]}
5... Nf6 {[%clk 0:02:48.2]} 6. Qe2 {[%clk 0:02:42.2]} 6... d5 {[%clk 0:02:47.9]}
7. exd5 {[%clk 0:02:40.8]} 7... Nxd5 {[%clk 0:02:46.2]} 8. Bd2 {[%clk
0:02:40.5]} 8... Nd7 {[%clk 0:02:43.8]} 9. O-O {[%clk 0:02:33.6]} 9... N5f6
{[%clk 0:02:36.4]} 10. Rad1 {[%clk 0:02:29.8]} 10... O-O {[%clk 0:02:35]} 11.
Ne5 {[%clk 0:02:29]} 11... Be7 {[%clk 0:02:29.6]} 12. Ne4 {[%clk 0:02:26.9]}
12... Nxe4 {[%clk 0:02:23.7]} 13. Bxe4 {[%clk 0:02:26.9]} 13... Bxe4 {[%clk
0:02:23.6]} 14. Qxe4 {[%clk 0:02:27.5]} 14... Nxe5 {[%clk 0:02:22.8]} 15. dxe5
{[%clk 0:02:25.9]} 15... Qd5 {[%clk 0:02:22.3]} 16. Qxd5 {[%clk 0:02:22.3]}
16... exd5 {[%clk 0:02:22.1]} 17. Be3 {[%clk 0:02:19.8]} 17... Rad8 {[%clk
0:02:21.1]} 18. c3 {[%clk 0:02:14.9]} 18... c5 {[%clk 0:02:16.1]} 19. f4 {[%clk
0:02:14.4]} 19... f5 {[%clk 0:02:13.7]} 20. Kf2 {[%clk 0:02:12.4]} 20... Kf7
{[%clk 0:02:13.6]} 21. Ke2 {[%clk 0:02:11.9]} 21... Ke6 {[%clk 0:02:14]} 22. h3
{[%clk 0:02:09.5]} 22... h5 {[%clk 0:02:12.9]} 23. g3 {[%clk 0:02:09.9]} 23...
g6 {[%clk 0:02:09.7]} 24. Rg1 {[%clk 0:02:08.4]} 24... Rh8 {[%clk 0:02:08.3]}
25. Rg2 {[%clk 0:02:06.2]} 25... Rd7 {[%clk 0:02:06.9]} 26. Bf2 {[%clk
0:02:03.7]} 26... Rf8 {[%clk 0:02:01.1]} 27. Be3 {[%clk 0:01:52.8]} 27... Rh8
{[%clk 0:01:59.9]} 28. Bf2 {[%clk 0:01:52.8]} 28... g5 {[%clk 0:01:59.6]} 29.
Be3 {[%clk 0:01:47.1]} 29... g4 {[%clk 0:01:58.2]} 30. Rh1 {[%clk 0:01:44.5]}
30... d4 {[%clk 0:01:58]} 31. cxd4 {[%clk 0:01:44.4]} 31... cxd4 {[%clk
0:01:58.9]} 32. Bd2 {[%clk 0:01:44.7]} 32... d3+ {[%clk 0:01:59.3]} 33. Kd1
{[%clk 0:01:44.1]} 33... Rdd8 {[%clk 0:01:54.7]} 34. Rgh2 {[%clk 0:01:42.8]}
34... Rdg8 {[%clk 0:01:52.6]} 35. Be1 {[%clk 0:01:39.6]} 35... h4 {[%clk
0:01:30.7]} 36. hxg4 {[%clk 0:01:22.5]} 36... Rxg4 {[%clk 0:00:57.5]} 37. gxh4
{[%clk 0:01:15.9]} 37... Rxf4 {[%clk 0:00:57.4]} 38. h5 {[%clk 0:01:16.4]} 38...
Rc4 {[%clk 0:00:56.8]} 39. Bc3 {[%clk 0:01:13.3]} 39... b5 {[%clk 0:00:50.7]}
40. h6 {[%clk 0:00:58.9]} 40... b4 {[%clk 0:00:50.6]} 41. Bd2 {[%clk 0:00:58.7]}
41... Rc2 {[%clk 0:00:45.3]} 42. h7 {[%clk 0:00:47.8]} 42... Rxb2 {[%clk
0:00:45]} 43. Rg1 {[%clk 0:00:46.2]} 43... Bc5 {[%clk 0:00:31.5]} 44. Rg3 {[%clk
0:00:33.5]} 44... Rb1+ {[%clk 0:00:23.6]} 45. Bc1 {[%clk 0:00:33.3]} 45... f4
{[%clk 0:00:24.5]} 46. Rxd3 {[%clk 0:00:32.8]} 46... Be3 {[%clk 0:00:25.1]} 47.
Rxe3 {[%clk 0:00:12.2]} 47... fxe3 {[%clk 0:00:24.9]} 48. Kc2 {[%clk 0:00:12.8]}
48... Ra1 {[%clk 0:00:19.2]} 49. Bb2 {[%clk 0:00:12.6]} 49... Rf1 {[%clk
0:00:17.5]} 50. Rh6+ {[%clk 0:00:12.3]} 50... Ke7 {[%clk 0:00:14.8]} 51. e6
{[%clk 0:00:12.6]} 51... Rf2+ {[%clk 0:00:13]} 52. Kb3 {[%clk 0:00:11.8]} 52...
e2 {[%clk 0:00:10.9]} 53. Bxh8 {[%clk 0:00:10.7]} 53... e1=Q {[%clk 0:00:11.1]}
54. Bf6+ {[%clk 0:00:10.9]} 54... Rxf6 {[%clk 0:00:10.9]} 55. h8=Q {[%clk
0:00:10.4]} 55... Qe3+ {[%clk 0:00:09.7]} 56. Ka4 {[%clk 0:00:10.1]} 56... Qxh6
{[%clk 0:00:08]} 57. Qa8 {[%clk 0:00:06.5]} 57... Rxe6 {[%clk 0:00:05.4]} 58.
Qxa7+ {[%clk 0:00:06.8]} 58... Kf6 {[%clk 0:00:05.7]} 59. Qd4+ {[%clk
0:00:06.4]} 59... Kg6 {[%clk 0:00:03.4]} 60. Qg4+ {[%clk 0:00:06.1]} 60... Kf7
{[%clk 0:00:03.9]} 61. Qf3+ {[%clk 0:00:05.7]} 61... Qf6 {[%clk 0:00:04.5]} 62.
Qb7+ {[%clk 0:00:05.6]} 62... Re7 {[%clk 0:00:05]} 63. Qd5+ {[%clk 0:00:05.9]}
63... Qe6 {[%clk 0:00:05.6]} 64. Qh5+ {[%clk 0:00:06.1]} 64... Kf6 {[%clk
0:00:05.5]} 65. Qh6+ {[%clk 0:00:06]} 65... Kf5 {[%clk 0:00:06.1]} 66. Qh5+
{[%clk 0:00:06.2]} 66... Ke4 {[%clk 0:00:06.1]} 67. Qe2+ {[%clk 0:00:05.9]}
67... Kd5 {[%clk 0:00:06.1]} 68. Qb5+ {[%clk 0:00:06]} 68... Kd4 {[%clk
0:00:06]} 69. Kxb4 {[%clk 0:00:01.3]} 69... Qd6+ {[%clk 0:00:05.7]} 70. Kb3
{[%clk 0:00:01.5]} 70... Re3+ {[%clk 0:00:05.3]} 0-1

[Event "Early-Titled-Tuesday-Blitz-November-28-2023"]
[Site "Chess.com"]
[Date "2023.11.28"]
[Round "1"]
[White "platy3"]
[Black "tusplingher"]
[Result "1-0"]
[WhiteElo "2890"]
[BlackElo "2496"]
[TimeControl "180+1"]
[EndTime "8:09:08 PST"]
[Termination "platy3 won on time"]

1. d4 {[%clk 0:02:56.5]} 1... Nf6 {[%clk 0:02:58.8]} 2. Nf3 {[%clk 0:02:56.1]}
2... d5 {[%clk 0:02:57]} 3. c3 {[%clk 0:02:55.7]} 3... Bf5 {[%clk 0:02:49.1]} 4.
Qb3 {[%clk 0:02:54.6]} 4... Qc8 {[%clk 0:02:44.5]} 5. c4 {[%clk 0:02:53.8]} 5...
dxc4 {[%clk 0:02:31.6]} 6. Qxc4 {[%clk 0:02:53.3]} 6... Nbd7 {[%clk 0:02:32.2]}
7. Nc3 {[%clk 0:02:52.7]} 7... e6 {[%clk 0:02:32]} 8. g3 {[%clk 0:02:46.3]} 8...
Be7 {[%clk 0:02:23.6]} 9. Bg2 {[%clk 0:02:45.8]} 9... Ne4 {[%clk 0:02:12.6]} 10.
O-O {[%clk 0:02:37.6]} 10... O-O {[%clk 0:02:10.2]} 11. Bf4 {[%clk 0:02:32.6]}
11... Nb6 {[%clk 0:01:51.5]} 12. Qb3 {[%clk 0:02:30.5]} 12... c5 {[%clk
0:01:45.4]} 13. Ne5 {[%clk 0:02:24]} 13... Nxc3 {[%clk 0:01:38.2]} 14. bxc3
{[%clk 0:02:24.9]} 14... Rd8 {[%clk 0:01:32.7]} 15. Rfd1 {[%clk 0:02:14.8]}
15... h6 {[%clk 0:01:17.1]} 16. Rac1 {[%clk 0:02:11.3]} 16... c4 {[%clk
0:00:48.5]} 17. Qb2 {[%clk 0:02:05.5]} 17... Bh7 {[%clk 0:00:42.4]} 18. e4
{[%clk 0:02:00.7]} 18... Bd6 {[%clk 0:00:36.4]} 19. Qe2 {[%clk 0:01:56.3]} 19...
Qc7 {[%clk 0:00:35.8]} 20. Qg4 {[%clk 0:01:43.3]} 20... Nd7 {[%clk 0:00:32.2]}
21. Bxh6 {[%clk 0:01:38.8]} 21... Bxe5 {[%clk 0:00:28.2]} 22. dxe5 {[%clk
0:01:38.7]} 22... Qxe5 {[%clk 0:00:29.1]} 23. Bf4 {[%clk 0:01:38.7]} 23... Qa5
{[%clk 0:00:23.5]} 24. Qh4 {[%clk 0:01:34.5]} 24... Nf6 {[%clk 0:00:21.5]} 25.
e5 {[%clk 0:01:23.4]} 25... Nd5 {[%clk 0:00:20.6]} 26. Bg5 {[%clk 0:01:19.8]}
26... Rd7 {[%clk 0:00:20.2]} 27. Qxc4 {[%clk 0:01:10.7]} 27... Bg6 {[%clk
0:00:10.8]} 28. h4 {[%clk 0:01:09]} 28... Bh7 {[%clk 0:00:10.7]} 29. h5 {[%clk
0:01:08.7]} 29... Nb6 {[%clk 0:00:10.5]} 30. Qf4 {[%clk 0:01:00.7]} 30... Rxd1+
{[%clk 0:00:09]} 31. Rxd1 {[%clk 0:01:01.6]} 31... Qxc3 {[%clk 0:00:09.2]} 32.
h6 {[%clk 0:00:57.4]} 32... Qc2 {[%clk 0:00:09.6]} 33. Rc1 {[%clk 0:00:52.9]}
33... Qf5 {[%clk 0:00:09.8]} 34. hxg7 {[%clk 0:00:48.4]} 34... Qxf4 {[%clk
0:00:09.2]} 35. Bxf4 {[%clk 0:00:48.9]} 35... Kxg7 {[%clk 0:00:09.9]} 36. Rc7
{[%clk 0:00:49.4]} 36... Nd5 {[%clk 0:00:09.4]} 37. Bxd5 {[%clk 0:00:48]} 37...
exd5 {[%clk 0:00:10.3]} 38. e6 {[%clk 0:00:48.8]} 38... Kf6 {[%clk 0:00:10.6]}
39. Rxf7+ {[%clk 0:00:48.1]} 39... Kg6 {[%clk 0:00:09.8]} 40. Rxb7 {[%clk
0:00:47.2]} 40... Bg8 {[%clk 0:00:10.3]} 41. e7 {[%clk 0:00:46.4]} 41... Be6
{[%clk 0:00:08.2]} 42. Be3 {[%clk 0:00:43.8]} 42... Kf5 {[%clk 0:00:07]} 43.
Rxa7 {[%clk 0:00:39.4]} 43... Re8 {[%clk 0:00:07]} 44. f3 {[%clk 0:00:37.2]}
44... Ke5 {[%clk 0:00:07.2]} 45. Bf4+ {[%clk 0:00:29.6]} 45... Kd4 {[%clk
0:00:07.5]} 46. Kf2 {[%clk 0:00:26.4]} 46... Kc4 {[%clk 0:00:07.8]} 47. Rc7+
{[%clk 0:00:25.1]} 47... Kd3 {[%clk 0:00:08.3]} 48. Be5 {[%clk 0:00:23.7]} 48...
d4 {[%clk 0:00:08.3]} 49. a4 {[%clk 0:00:23.7]} 49... Bc4 {[%clk 0:00:07.6]} 50.
Rd7 {[%clk 0:00:21.6]} 50... Kc3 {[%clk 0:00:07.7]} 51. Bxd4+ {[%clk 0:00:19.7]}
51... Kb4 {[%clk 0:00:08.4]} 52. Bf6 {[%clk 0:00:17.7]} 52... Kxa4 {[%clk
0:00:08.4]} 53. Rd8 {[%clk 0:00:18.1]} 53... Bf7 {[%clk 0:00:08.8]} 54. Rxe8
{[%clk 0:00:18.1]} 54... Bxe8 {[%clk 0:00:09.7]} 55. Ke3 {[%clk 0:00:18.6]}
55... Kb5 {[%clk 0:00:10.4]} 56. Ke4 {[%clk 0:00:19.1]} 56... Kc6 {[%clk
0:00:11.1]} 57. Ke5 {[%clk 0:00:19.7]} 57... Kd7 {[%clk 0:00:11.4]} 58. g4
{[%clk 0:00:20.2]} 58... Bg6 {[%clk 0:00:11.4]} 59. f4 {[%clk 0:00:20.7]} 59...
Bf7 {[%clk 0:00:11.1]} 60. f5 {[%clk 0:00:20.9]} 60... Bc4 {[%clk 0:00:09.9]}
61. Bh4 {[%clk 0:00:20.3]} 61... Ke8 {[%clk 0:00:10.2]} 62. g5 {[%clk
0:00:17.7]} 62... Bd3 {[%clk 0:00:10.7]} 63. g6 {[%clk 0:00:17.4]} 63... Bc4
{[%clk 0:00:07]} 64. Bf6 {[%clk 0:00:17]} 64... Bd3 {[%clk 0:00:06]} 65. Kf4
{[%clk 0:00:17.4]} 65... Bc2 {[%clk 0:00:06]} 66. Kg5 {[%clk 0:00:17.8]} 66...
Bb1 {[%clk 0:00:04.5]} 67. g7 {[%clk 0:00:13.4]} 67... Ba2 {[%clk 0:00:04.7]}
68. Kg6 {[%clk 0:00:14.1]} 68... Bg8 {[%clk 0:00:04.9]} 69. Bg5 {[%clk
0:00:14.5]} 69... Kd7 {[%clk 0:00:04.9]} 70. f6 {[%clk 0:00:11.4]} 70... Ke8
{[%clk 0:00:05.4]} 71. Bh4 {[%clk 0:00:12.2]} 71... Bd5 {[%clk 0:00:03.5]} 72.
Kh7 {[%clk 0:00:12.5]} 72... Be4+ {[%clk 0:00:03.5]} 73. Kh8 {[%clk 0:00:12.8]}
73... Bd5 {[%clk 0:00:03.8]} 74. g8=B {[%clk 0:00:11.2]} 74... Be4 {[%clk
0:00:03.4]} 75. Bc4 {[%clk 0:00:10.7]} 75... Bg6 {[%clk 0:00:03.1]} 76. Bb5+
{[%clk 0:00:10.7]} 76... Kf7 {[%clk 0:00:02.7]} 77. e8=B+ {[%clk 0:00:10.3]}
77... Kf8 {[%clk 0:00:03.3]} 78. Bec6 {[%clk 0:00:05.3]} 78... Be8 {[%clk
0:00:02.6]} 79. Bf2 {[%clk 0:00:03.2]} 1-0

[Event "Early-Titled-Tuesday-Blitz-November-28-2023"]
[Site "Chess.com"]
[Date "2023.11.28"]
[Round "1"]
[White "Russian_berezka"]
[Black "jcmesafischer"]
[Result "0-1"]
[WhiteElo "2601"]
[BlackElo "2317"]
[TimeControl "180+1"]
[EndTime "8:09:16 PST"]
[Termination "jcmesafischer won on time"]

1. d4 {[%clk 0:03:00.9]} 1... Nf6 {[%clk 0:02:42.2]} 2. c4 {[%clk 0:03:00.4]}
2... e6 {[%clk 0:02:42]} 3. Nf3 {[%clk 0:02:59]} 3... d5 {[%clk 0:02:41.4]} 4.
Nc3 {[%clk 0:02:58.7]} 4... Be7 {[%clk 0:02:40.9]} 5. Bg5 {[%clk 0:02:55.8]}
5... Nbd7 {[%clk 0:02:40.3]} 6. e3 {[%clk 0:02:55.4]} 6... c6 {[%clk 0:02:40.1]}
7. Qc2 {[%clk 0:02:51.9]} 7... O-O {[%clk 0:02:39.7]} 8. h3 {[%clk 0:02:45.2]}
8... Re8 {[%clk 0:02:38.1]} 9. Bf4 {[%clk 0:02:41.4]} 9... Nf8 {[%clk 0:02:36]}
10. Rd1 {[%clk 0:02:37]} 10... Ng6 {[%clk 0:02:34.6]} 11. Bh2 {[%clk 0:02:37.1]}
11... Bd6 {[%clk 0:02:34.2]} 12. Bxd6 {[%clk 0:02:31.1]} 12... Qxd6 {[%clk
0:02:35.1]} 13. Be2 {[%clk 0:02:29]} 13... e5 {[%clk 0:02:24.9]} 14. dxe5 {[%clk
0:02:24]} 14... Nxe5 {[%clk 0:02:24.7]} 15. cxd5 {[%clk 0:02:24.7]} 15... Nxd5
{[%clk 0:02:22.8]} 16. Nxd5 {[%clk 0:02:19.4]} 16... cxd5 {[%clk 0:02:21.1]} 17.
O-O {[%clk 0:02:15.9]} 17... Bd7 {[%clk 0:02:14.5]} 18. Qb3 {[%clk 0:02:11.4]}
18... Bc6 {[%clk 0:02:11.4]} 19. Rd4 {[%clk 0:02:02.4]} 19... Nd7 {[%clk
0:02:02]} 20. Rfd1 {[%clk 0:01:57.8]} 20... Nc5 {[%clk 0:02:01.1]} 21. Qa3
{[%clk 0:01:40.9]} 21... Qe7 {[%clk 0:01:51.4]} 22. Rc1 {[%clk 0:01:29.9]} 22...
Ne6 {[%clk 0:01:48.8]} 23. Qxe7 {[%clk 0:01:24.3]} 23... Rxe7 {[%clk 0:01:49.7]}
24. Rd2 {[%clk 0:01:22.4]} 24... f6 {[%clk 0:01:39.1]} 25. b4 {[%clk 0:01:21.3]}
25... a6 {[%clk 0:01:37.7]} 26. Nd4 {[%clk 0:01:18]} 26... Nxd4 {[%clk
0:01:37.1]} 27. Rxd4 {[%clk 0:01:18.9]} 27... Re4 {[%clk 0:01:36.3]} 28. Rcd1
{[%clk 0:01:12.2]} 28... Rae8 {[%clk 0:01:31.3]} 29. Bf3 {[%clk 0:01:10.8]}
29... Rxd4 {[%clk 0:01:29.5]} 30. Rxd4 {[%clk 0:01:11.7]} 30... Re5 {[%clk
0:01:21.9]} 31. Kf1 {[%clk 0:01:05.9]} 31... Kf8 {[%clk 0:01:18.7]} 32. Ke1
{[%clk 0:01:05.6]} 32... Ke7 {[%clk 0:01:19]} 33. Kd2 {[%clk 0:01:05.8]} 33...
Kd6 {[%clk 0:01:10.8]} 34. h4 {[%clk 0:01:02.2]} 34... g5 {[%clk 0:01:05.2]} 35.
Bd1 {[%clk 0:00:48.6]} 35... Re4 {[%clk 0:01:01.6]} 36. hxg5 {[%clk 0:00:45.6]}
36... Rxd4+ {[%clk 0:00:56.1]} 37. exd4 {[%clk 0:00:45]} 37... fxg5 {[%clk
0:00:56.7]} 38. Ke3 {[%clk 0:00:44]} 38... Bd7 {[%clk 0:00:53.8]} 39. f4 {[%clk
0:00:35.6]} 39... h6 {[%clk 0:00:52.3]} 40. Bc2 {[%clk 0:00:29]} 40... b6 {[%clk
0:00:47.4]} 41. a3 {[%clk 0:00:24.4]} 41... a5 {[%clk 0:00:46.9]} 42. Bh7 {[%clk
0:00:23.2]} 42... axb4 {[%clk 0:00:40.5]} 43. axb4 {[%clk 0:00:22.7]} 43... Kc6
{[%clk 0:00:20.2]} 44. f5 {[%clk 0:00:16.5]} 44... Kd6 {[%clk 0:00:20.5]} 45. f6
{[%clk 0:00:10.1]} 45... Bg4 {[%clk 0:00:15.3]} 46. Bg8 {[%clk 0:00:08.3]} 46...
Bh5 {[%clk 0:00:09.5]} 47. g3 {[%clk 0:00:03.9]} 47... Bg4 {[%clk 0:00:06.1]}
48. Kf2 {[%clk 0:00:03.7]} 48... Bf5 {[%clk 0:00:05.2]} 49. Kf3 {[%clk
0:00:03.2]} 49... Bd7 {[%clk 0:00:02.7]} 50. f7 {[%clk 0:00:02.6]} 50... Ke7
{[%clk 0:00:02.7]} 51. f8=Q+ {[%clk 0:00:03.3]} 51... Kxf8 {[%clk 0:00:02.9]}
52. Bxd5 {[%clk 0:00:04.2]} 52... Ke7 {[%clk 0:00:03.3]} 53. Ke4 {[%clk
0:00:03.8]} 53... Kf6 {[%clk 0:00:02.1]} 54. Bg8 {[%clk 0:00:03.7]} 54... Bf5+
{[%clk 0:00:02.6]} 55. Ke3 {[%clk 0:00:03.7]} 55... Bb1 {[%clk 0:00:02.7]} 56.
Bb3 {[%clk 0:00:02.7]} 56... h5 {[%clk 0:00:03]} 57. Bd1 {[%clk 0:00:02.9]}
57... h4 {[%clk 0:00:03.2]} 58. gxh4 {[%clk 0:00:03.5]} 58... gxh4 {[%clk
0:00:04.1]} 59. Kf4 {[%clk 0:00:04]} 59... h3 {[%clk 0:00:04]} 60. Kg3 {[%clk
0:00:03.7]} 60... Bf5 {[%clk 0:00:04.6]} 61. Be2 {[%clk 0:00:03.4]} 61... Ke6
{[%clk 0:00:04.7]} 62. Bf3 {[%clk 0:00:03.6]} 62... Kd6 {[%clk 0:00:05]} 63. Kf4
{[%clk 0:00:03.5]} 63... Be6 {[%clk 0:00:05.3]} 64. Kg3 {[%clk 0:00:03.8]} 64...
Bd7 {[%clk 0:00:05.4]} 65. Bb7 {[%clk 0:00:01.9]} 65... Bc6 {[%clk 0:00:04.8]}
66. Ba6 {[%clk 0:00:02.3]} 66... Kd5 {[%clk 0:00:05.1]} 67. Kxh3 {[%clk
0:00:02.6]} 67... Kxd4 {[%clk 0:00:05.5]} 68. Kg3 {[%clk 0:00:03]} 68... Kc3
{[%clk 0:00:05.9]} 69. b5 {[%clk 0:00:02.9]} 69... Bd7 {[%clk 0:00:06.4]} 70.
Kf4 {[%clk 0:00:03]} 70... Kb4 {[%clk 0:00:07]} 71. Ke5 {[%clk 0:00:03.4]} 71...
Bxb5 {[%clk 0:00:07.7]} 72. Bb7 {[%clk 0:00:03.7]} 72... Bc4 {[%clk 0:00:07.9]}
73. Bc6 {[%clk 0:00:03.7]} 73... Kc5 {[%clk 0:00:08.5]} 74. Be8 {[%clk
0:00:03.9]} 74... Bb5 {[%clk 0:00:09.2]} 75. Bf7 {[%clk 0:00:04.2]} 75... Bc6
{[%clk 0:00:09.2]} 76. Bb3 {[%clk 0:00:03.7]} 76... b5 {[%clk 0:00:09.3]} 77.
Kf4 {[%clk 0:00:04.3]} 77... b4 {[%clk 0:00:09.7]} 78. Ke3 {[%clk 0:00:04.5]}
78... Bd5 {[%clk 0:00:10.6]} 79. Bc2 {[%clk 0:00:04.5]} 79... Kc4 {[%clk
0:00:11]} 80. Kd2 {[%clk 0:00:04.9]} 80... Kd4 {[%clk 0:00:09.7]} 81. Kc1 {[%clk
0:00:04.6]} 81... Be4 {[%clk 0:00:10.1]} 82. Ba4 {[%clk 0:00:04.2]} 82... Kc3
{[%clk 0:00:09.7]} 83. Bd1 {[%clk 0:00:04.5]} 83... Bd5 {[%clk 0:00:08.8]} 84.
Kb1 {[%clk 0:00:04.3]} 84... Bb3 {[%clk 0:00:09.2]} 85. Bf3 {[%clk 0:00:03.9]}
85... Bc2+ {[%clk 0:00:08.8]} 86. Ka1 {[%clk 0:00:02.5]} 86... b3 {[%clk
0:00:09.7]} 0-1

[Event "Early-Titled-Tuesday-Blitz-November-28-2023"]
[Site "Chess.com"]
[Date "2023.11.28"]
[Round "1"]
[White "Anton_Demchenko"]
[Black "jeetjain"]
[Result "0-1"]
[WhiteElo "2966"]
[BlackElo "2528"]
[TimeControl "180+1"]
[EndTime "8:09:41 PST"]
[Termination "jeetjain won by resignation"]

1. e4 {[%clk 0:03:00.9]} 1... c6 {[%clk 0:02:58.2]} 2. d4 {[%clk 0:03:00.8]}
2... d5 {[%clk 0:02:55]} 3. e5 {[%clk 0:03:01.2]} 3... Bf5 {[%clk 0:02:42.8]} 4.
Bd3 {[%clk 0:03:01.8]} 4... Bxd3 {[%clk 0:02:42.2]} 5. Qxd3 {[%clk 0:03:02.7]}
5... e6 {[%clk 0:02:42.7]} 6. c3 {[%clk 0:03:03.4]} 6... c5 {[%clk 0:02:40.8]}
7. Ne2 {[%clk 0:03:04.3]} 7... Nc6 {[%clk 0:02:41]} 8. O-O {[%clk 0:03:04]} 8...
Nge7 {[%clk 0:02:38.9]} 9. Nd2 {[%clk 0:03:00.6]} 9... Nf5 {[%clk 0:02:37.9]}
10. Nf3 {[%clk 0:03:00.6]} 10... Be7 {[%clk 0:02:33.9]} 11. g4 {[%clk
0:02:59.1]} 11... Nh4 {[%clk 0:02:33.4]} 12. Nxh4 {[%clk 0:02:59.8]} 12... Bxh4
{[%clk 0:02:34]} 13. f4 {[%clk 0:03:00.6]} 13... Be7 {[%clk 0:02:33.1]} 14. Be3
{[%clk 0:02:56.4]} 14... cxd4 {[%clk 0:02:33]} 15. cxd4 {[%clk 0:02:45.5]} 15...
h5 {[%clk 0:02:32.9]} 16. f5 {[%clk 0:02:45.9]} 16... hxg4 {[%clk 0:02:21.2]}
17. fxe6 {[%clk 0:02:45.4]} 17... fxe6 {[%clk 0:02:09.8]} 18. Nf4 {[%clk
0:02:35.6]} 18... Rh6 {[%clk 0:02:04.3]} 19. Ng6 {[%clk 0:01:54.7]} 19... Rh3
{[%clk 0:01:50.3]} 20. Rae1 {[%clk 0:01:39.2]} 20... Qb6 {[%clk 0:01:39.6]} 21.
Nf4 {[%clk 0:01:23.9]} 21... Rh6 {[%clk 0:01:24.5]} 22. Nxd5 {[%clk 0:01:04.8]}
22... exd5 {[%clk 0:01:23.2]} 23. Bxh6 {[%clk 0:01:05.4]} 23... gxh6 {[%clk
0:01:24.1]} 24. Qg6+ {[%clk 0:01:05.7]} 24... Kd7 {[%clk 0:01:22.4]} 25. Qxg4+
{[%clk 0:01:06.4]} 25... Kc7 {[%clk 0:01:21.2]} 26. Rf7 {[%clk 0:01:07]} 26...
Re8 {[%clk 0:01:12.1]} 27. Kh1 {[%clk 0:00:48.6]} 27... Qxd4 {[%clk 0:01:09.5]}
28. Qg3 {[%clk 0:00:49.3]} 28... Kb6 {[%clk 0:01:05]} 29. Rf4 {[%clk 0:00:37.1]}
29... Qc5 {[%clk 0:00:57.8]} 30. b4 {[%clk 0:00:35.4]} 30... Qc2 {[%clk
0:00:51.5]} 31. Rf2 {[%clk 0:00:22.4]} 31... Qa4 {[%clk 0:00:42.6]} 32. a3
{[%clk 0:00:22]} 32... a6 {[%clk 0:00:37]} 33. e6 {[%clk 0:00:18.9]} 33... d4
{[%clk 0:00:25.9]} 34. Rf7 {[%clk 0:00:10.5]} 34... Qb5 {[%clk 0:00:24.6]} 35.
Qf3 {[%clk 0:00:06.2]} 35... Rd8 {[%clk 0:00:21.4]} 36. Rf5 {[%clk 0:00:03.8]}
36... Qc4 {[%clk 0:00:19.2]} 37. Qe4 {[%clk 0:00:04.6]} 37... Qc3 {[%clk
0:00:17.5]} 38. Rf3 {[%clk 0:00:02.9]} 38... Qc4 {[%clk 0:00:17.2]} 39. Qd3
{[%clk 0:00:01.9]} 39... Qxd3 {[%clk 0:00:17.2]} 40. Rxd3 {[%clk 0:00:02.8]}
40... Rd5 {[%clk 0:00:17.4]} 41. Kg2 {[%clk 0:00:02.8]} 41... Ne5 {[%clk
0:00:17.3]} 42. Rh3 {[%clk 0:00:02.7]} 42... d3 {[%clk 0:00:16.4]} 43. Rd1
{[%clk 0:00:03.1]} 43... d2 {[%clk 0:00:16.2]} 44. Rc3 {[%clk 0:00:03.4]} 44...
Kb5 {[%clk 0:00:15.5]} 45. Kf2 {[%clk 0:00:02.6]} 45... Nc4 {[%clk 0:00:15.4]}
46. Rc2 {[%clk 0:00:02.5]} 46... Bg5 {[%clk 0:00:15.4]} 47. Ke2 {[%clk
0:00:02.5]} 47... Re5+ {[%clk 0:00:11.9]} 48. Kd3 {[%clk 0:00:03]} 48... Re3+
{[%clk 0:00:10.5]} 49. Kd4 {[%clk 0:00:03]} 49... Nd6 {[%clk 0:00:07.8]} 50. e7
{[%clk 0:00:02.9]} 50... Rxe7 {[%clk 0:00:06.4]} 51. Rc5+ {[%clk 0:00:03.7]}
51... Kb6 {[%clk 0:00:06.7]} 52. h4 {[%clk 0:00:03.3]} 52... Be3+ {[%clk
0:00:04.7]} 53. Kd3 {[%clk 0:00:03.3]} 53... Bxc5 {[%clk 0:00:05.2]} 54. bxc5+
{[%clk 0:00:04]} 54... Kxc5 {[%clk 0:00:06.1]} 55. Rxd2 {[%clk 0:00:04.7]} 55...
Nb5 {[%clk 0:00:06.7]} 56. Rc2+ {[%clk 0:00:05.1]} 56... Kd5 {[%clk 0:00:05.7]}
57. a4 {[%clk 0:00:06]} 57... Nd4 {[%clk 0:00:05.9]} 58. Rc8 {[%clk 0:00:06.5]}
58... Nf5 {[%clk 0:00:05.8]} 59. h5 {[%clk 0:00:06]} 59... Ng3 {[%clk
0:00:05.7]} 60. Rd8+ {[%clk 0:00:05.6]} 60... Kc6 {[%clk 0:00:05.7]} 61. Rh8
{[%clk 0:00:06.3]} 61... Re5 {[%clk 0:00:04.3]} 62. Rxh6+ {[%clk 0:00:06.4]}
62... Kc5 {[%clk 0:00:04.8]} 63. Rh7 {[%clk 0:00:06.2]} 63... b5 {[%clk
0:00:05]} 64. Rb7 {[%clk 0:00:06.5]} 64... Nxh5 {[%clk 0:00:04.4]} 65. a5 {[%clk
0:00:03.3]} 65... Nf4+ {[%clk 0:00:04]} 66. Kc2 {[%clk 0:00:03.1]} 66... Ne6
{[%clk 0:00:04.2]} 67. Rb6 {[%clk 0:00:03.2]} 67... Nd4+ {[%clk 0:00:03.4]} 68.
Kc3 {[%clk 0:00:02.7]} 68... Re6 {[%clk 0:00:04.3]} 69. Rb8 {[%clk 0:00:02.3]}
69... Ne2+ {[%clk 0:00:03.7]} 70. Kd2 {[%clk 0:00:02.1]} 70... Kb4 {[%clk
0:00:03.3]} 71. Ra8 {[%clk 0:00:02.8]} 71... Kxa5 {[%clk 0:00:03.7]} 72. Kd3
{[%clk 0:00:03.5]} 72... b4 {[%clk 0:00:04.1]} 73. Kc4 {[%clk 0:00:03.9]} 73...
Rc6+ {[%clk 0:00:03.9]} 74. Kd5 {[%clk 0:00:03.9]} 74... Rb6 {[%clk 0:00:04.2]}
75. Rc8 {[%clk 0:00:04]} 75... b3 {[%clk 0:00:04.5]} 76. Rc1 {[%clk 0:00:04.2]}
76... b2 {[%clk 0:00:04.6]} 77. Ra1+ {[%clk 0:00:04.7]} 77... bxa1=Q {[%clk
0:00:04.4]} 78. Kc4 {[%clk 0:00:05.3]} 78... Qc1+ {[%clk 0:00:04.4]} 79. Kd3
{[%clk 0:00:06.2]} 79... Kb4 {[%clk 0:00:04.3]} 80. Ke4 {[%clk 0:00:07.1]} 80...
a5 {[%clk 0:00:04.5]} 81. Kd5 {[%clk 0:00:08]} 81... a4 {[%clk 0:00:05.4]} 0-1

[Event "Early-Titled-Tuesday-Blitz-November-28-2023"]
[Site "Chess.com"]
[Date "2023.11.28"]
[Round "2"]
[White "Road2GM3000"]
[Black "LeoWin2012"]
[Result "1-0"]
[WhiteElo "2503"]
[BlackElo "2264"]
[TimeControl "180+1"]
[EndTime "8:11:53 PST"]
[Termination "Road2GM3000 won by resignation"]

1. d4 {[%clk 0:03:00.5]} 1... Nf6 {[%clk 0:02:52.3]} 2. c4 {[%clk 0:03:00.6]}
2... g6 {[%clk 0:02:53.2]} 3. Nc3 {[%clk 0:03:00.7]} 3... Bg7 {[%clk 0:02:52.7]}
4. e4 {[%clk 0:03:01.3]} 4... d6 {[%clk 0:02:53.1]} 5. f4 {[%clk 0:03:02]} 5...
O-O {[%clk 0:02:53]} 6. Nf3 {[%clk 0:03:02.7]} 6... c5 {[%clk 0:02:52.1]} 7. d5
{[%clk 0:03:03.1]} 7... Nbd7 {[%clk 0:02:50.2]} 8. Bd3 {[%clk 0:03:03.4]} 8...
e5 {[%clk 0:02:43]} 9. fxe5 {[%clk 0:03:03.1]} 9... Nxe5 {[%clk 0:02:43.5]} 10.
Nxe5 {[%clk 0:03:03.5]} 10... dxe5 {[%clk 0:02:44.3]} 11. O-O {[%clk 0:03:04]}
11... Re8 {[%clk 0:02:39.7]} 12. Bg5 {[%clk 0:03:04.4]} 12... a6 {[%clk
0:02:38.7]} 13. Qf3 {[%clk 0:03:04]} 13... Bg4 {[%clk 0:02:31.3]} 14. Bxf6
{[%clk 0:03:03]} 14... Bxf3 {[%clk 0:02:30.5]} 15. Bxd8 {[%clk 0:03:03.5]} 15...
Bxg2 {[%clk 0:02:28.6]} 16. Kxg2 {[%clk 0:03:02.7]} 16... Raxd8 {[%clk
0:02:29.5]} 1-0